Cogmind - Beta 13 @@@ ROGUE MODE // 2024.04.09 @ 06:54:46 Player: Jennifer Result: Destroyed by D-53 Grenadier with Mini Grenade Launcher Performance ------------- Evolutions (0) 0 Regions Visited (4) 800 Robots Destroyed (19) 95 Value Destroyed (441) 441 Prototype IDs (25) 500 Alien Tech Used (0) 0 Bonus (300) 300 TOTAL SCORE: 2136 Bonus ------- Aligned with FarCom 300 Cogmind --------- Core Integrity 0/250 Matter 275/300 Energy 85/100 System Corruption 2% Temperature Cool (0) Movement Core (250) Ox4 Location -9/Mines Parts ------- > --- POWER (1) -------- (None) > --- PROPULSION (2) --- (None) > --- UTILITY (2) ------ Medium Storage Unit > --- WEAPON (2) ------- Mini Grenade Launcher Mining Claw > --- INVENTORY (10) --- Flying Fortress v7 Improved Heat Sink Small Storage Unit Signal Interpreter Terrain Scan Processor Light Assault Rifle Peak State ------------ > --- POWER ------------ Light Ion Engine > --- PROPULSION ------- Aluminum Leg > --- UTILITY ---------- Medium Storage Unit Improved Terrain Scanner > --- WEAPON ----------- Mini Grenade Launcher Mining Claw > --- INVENTORY -------- Flying Fortress v7 Improved Heat Sink Small Storage Unit Signal Interpreter Terrain Scan Processor Light Assault Rifle [Rating: 13] Favorites ----------- Power Light Ion Engine Engine Light Ion Engine Propulsion Aluminum Leg Treads Light Treads Leg Aluminum Leg Utility Improved Terrain Scanner Device Improved Terrain Scanner Storage Small Storage Unit Weapon Mining Claw Energy Gun Medium Laser Ballistic Gun Assault Rifle Launcher Grenade Launcher Slashing Weapon Mining Claw Build | -11 -10 -10 -10 -9 ------- Run | Yrd Mat Min Exi Min Slots Evolved . | . . . . . Power . | . . . . . Propulsion . | . . . . . Utility . | . . . . . Weapon . | . . . . . Parts Attached 21 | 9 7 2 . 3 Power 2 | 1 1 . . . Engine 2 | 1 1 . . . Core . | . . . . . Reactor . | . . . . . Propulsion 6 | 4 . . . 2 Treads 2 | 2 . . . . Leg 4 | 2 . . . 2 Wheel . | . . . . . Hover . | . . . . . Flight . | . . . . . Utility 6 | 2 3 1 . . Device 4 | 1 2 1 . . Storage 2 | 1 1 . . . Processor . | . . . . . Hackware . | . . . . . Protection . | . . . . . Artifact . | . . . . . Weapon 7 | 2 3 1 . 1 Energy Gun 1 | 1 . . . . Energy Cannon . | . . . . . Ballistic Gun 2 | 1 1 . . . Ballistic Cannon . | . . . . . Launcher 2 | . . 1 . 1 Special Weapon . | . . . . . Impact Weapon . | . . . . . Slashing Weapon 2 | . 2 . . . Piercing Weapon . | . . . . . Special Melee Weapon . | . . . . . Unidentified Prototypes . | . . . . . Parts Lost 10 | . 3 1 . 6 Power 2 | . 1 . . 1 Propulsion 4 | . . 1 . 3 Utility 2 | . 1 . . 1 Weapon 2 | . 1 . . 1 Highest Loss Streak 6 | . 3 1 . 6 To Critical Strikes . | . . . . . Average Slot Usage (%) 91 | . 99 85 85 83 Engine 13 | . 13 14 14 14 Leg 20 | . 28 14 14 12 Device 13 | . 13 14 14 14 Storage 14 | . 14 14 14 14 Ballistic Gun 8 | . 18 . . . Launcher 7 | . . 14 14 14 Slashing Weapon 11 | . 8 14 14 14 Naked Turns . | . . . . . Heaviest Build 19 | 13 17 19 19 19 Greatest Support 40 | 40 20 10 10 10 Greatest Overweight (x) 5 | . . 1 1 5 Average Overweight (x) . | . . 1 1 1 Largest Inventory Capacity 10 | 8 10 10 10 10 Average Capacity 8 | 7 8 10 10 10 Most Carried 9 | 3 8 8 9 9 Average Carried 7 | 1 7 7 8 9 Final Capacity 10 | 8 10 10 10 10 Final Carried 9 | 3 7 8 9 9 Class Distribution -------------------- 92% | Mutant 7% | Assassin Dominant Class ---------------- Mutant | -10/Materials Mutant | -10/Mines Mutant | -10/Exiles Assassin | -9/Mines Resources | -11 -10 -10 -10 -9 ----------- Run | Yrd Mat Min Exi Min Matter Collected 624 | 305 184 10 . 125 Remotely . | . . . . . Salvage Created 455 | 88 265 14 . 88 Parts 31 | 3 24 2 . 2 Haulers Intercepted . | . . . . . Recyclers Shooed . | . . . . . Parts Field Recycled . | . . . . . Retrieved Matter . | . . . . . Parts Self-Destructed . | . . . . . Prevented . | . . . . . Kills | -11 -10 -10 -10 -9 ------- Run | Yrd Mat Min Exi Min Combat Hostiles Destroyed 19 | . 10 3 . 6 Melee 1 | . 1 . . . Guns 9 | . 9 . . . AOE 9 | . . 3 . 6 Classes Destroyed 7 | 2 3 . . 2 Builder 1 | . 1 . . . Tunneler 1 | 1 . . . . Recycler 1 | 1 . . . . Swarmer 9 | . 6 3 . . Grunt 6 | . 4 . . 2 Brawler 1 | . . . . 1 Assembled 3 | . . . . 3 Best Kill Streak 5 | 1 5 3 . 3 Combat Bots Only 4 | . 4 3 . 3 Max Kills in Single Turn 2 | 1 1 2 . 2 Gunslinging . | . . . . . Exploded 2 | . . 2 . 2 Melee 1 | . 1 . . . Uniques/NPCs Destroyed . | . . . . . Combat | -11 -10 -10 -10 -9 -------- Run | Yrd Mat Min Exi Min Hostile Shots Fired 83 | . 53 10 . 20 Missed 15 | . 10 1 . 4 Damage Taken 966 | . 466 124 . 376 Core 264 | . 72 40 . 152 Absorbed by Shields . | . . . . . Core Remaining (%) 100 | 100 . . . . Volleys Fired 49 | 5 33 2 . 9 Largest 2 | 2 2 1 . 1 Hottest 70 | 70 40 30 . 30 Shots Fired 76 | 10 55 2 . 9 Gun 65 | 10 55 . . . Cannon . | . . . . . Launcher 11 | . . 2 . 9 Special . | . . . . . Kinetic 60 | 5 55 . . . Thermal 5 | 5 . . . . Explosive 11 | . . 2 . 9 Electromagnetic . | . . . . . Robot Hit Streak 14 | 1 14 1 . 4 Robot Miss Streak 3 | 3 3 1 . 1 Penetration Max . | . . . . . Secondary Targets . | . . . . . Shots Hit Robots 56 | 4 43 1 . 8 Core Hits 31 | 3 15 3 . 10 Critical Kills . | . . . . . Critical Parts Destroyed . | . . . . . Critical Strikes . | . . . . . Melee Attacks 9 | . 7 . . 2 Impact . | . . . . . Slashing 9 | . 7 . . 2 Piercing . | . . . . . Sneak Attacks 1 | . 1 . . . Combat Hostiles . | . . . . . Follow-up Attacks . | . . . . . Damage Inflicted 1079 | 44 510 120 . 405 Guns 461 | 44 417 . . . Cannons . | . . . . . Explosions 470 | . . 120 . 350 Melee 148 | . 93 . . 55 Ramming . | . . . . . Kinetic 461 | 44 417 . . . Thermal . | . . . . . Explosive 470 | . . 120 . 350 Electromagnetic . | . . . . . Impact . | . . . . . Slashing 148 | . 93 . . 55 Piercing . | . . . . . Highest Corruption 2 | . 2 2 2 2 Average Corruption 1 | . 1 2 2 2 Corruption Purged . | . . . . . Corruption Blocked . | . . . . . Effects 23 | . 15 1 7 . Message Errors 7 | . 4 1 2 . Matter Fused 7 | . 4 . 3 . Heat Flow Errors 2 | . 2 . . . Energy Discharges 3 | . 3 . . . Data Loss (minor) 3 | . 2 . 1 . Alerts 1 | . . . 1 . Overload Shots . | . . . . . Overflow Damage 9 | . 4 . . 5 Projectiles . | . . . . . Explosions 5 | . . . . 5 Melee 4 | . 4 . . . Knockbacks . | . . . . . Impact . | . . . . . Kinetic . | . . . . . Secondary . | . . . . . Self-Inflicted Damage 94 | . . 28 . 66 Shots 4 | . . 1 . 3 Rammed . | . . . . . Targets Rammed . | . . . . . Kicked . | . . . . . Crushed . | . . . . . Highest Temperature 130 | 18 130 . . 1 Average Temperature 32 | 9 45 . . 1 Received Heat Transfer 236 | . 162 30 . 44 Siege Activations . | . . . . . Robots Corrupted . | . . . . . Combat Hostiles . | . . . . . Parts Fried . | . . . . . Impact Corruptions . | . . . . . Robots Melted . | . . . . . Combat Hostiles . | . . . . . Parts Melted . | . . . . . Heat Transferred . | . . . . . Parts Sabotaged . | . . . . . Parts Stolen . | . . . . . Parts Stripped . | . . . . . Power Chain Reactions . | . . . . . Alert | -11 -10 -10 -10 -9 ------- Run | Yrd Mat Min Exi Min Peak Influence 187 | 10 186 139 . 187 Initial 52 | . 6 52 . . Average 102 | 2 108 136 . 146 Maximum Alert Level . | . . . . . Low Security (%) 100 | 100 100 100 . 100 Level 1 . | . . . . . Level 2 . | . . . . . Level 3 . | . . . . . Level 4 . | . . . . . Level 5 . | . . . . . High Security . | . . . . . Max Security . | . . . . . Squads Dispatched 1 | . 1 . . . Investigation 1 | . 1 . . . Extermination . | . . . . . Reinforcement . | . . . . . Assault . | . . . . . Garrison . | . . . . . Intercept . | . . . . . Searches Triggered . | . . . . . Construction Impeded . | . . . . . Haulers Reinforced . | . . . . . Active Scanning Responses . | . . . . . Cargo Convoy Interrupts . | . . . . . Stealth | -11 -10 -10 -10 -9 --------- Run | Yrd Mat Min Exi Min Distress Signals 2 | . 2 . . . Communications Jammed . | . . . . . Distress Signals . | . . . . . Times Spotted 30 | . 14 5 . 11 Peak Tracking Total 5 | . 5 3 . 3 Tactical Retreats . | . . . . . Traps | -11 -10 -10 -10 -9 ------- Run | Yrd Mat Min Exi Min Traps Triggered 3 | . 3 . . . Indirectly . | . . . . . Trap Hack Attempts . | . . . . . Triggered . | . . . . . Disarmed . | . . . . . Reprogrammed . | . . . . . Reused . | . . . . . Traps Extracted . | . . . . . Installed . | . . . . . Triggered . | . . . . . Machines | -11 -10 -10 -10 -9 ---------- Run | Yrd Mat Min Exi Min Machines Disabled 8 | . . . . 8 Max in Single Turn 2 | . . . . 2 Machines Repaired . | . . . . . Machines Dismantled . | . . . . . Machines Sabotaged . | . . . . . Overloaded Fab Kills . | . . . . . Hacking | -11 -10 -10 -10 -9 --------- Run | Yrd Mat Min Exi Min Machines Accessed 7 | . 6 . 1 . Terminals 6 | . 6 . . . Fabricators . | . . . . . Repair Stations . | . . . . . Recycling Units . | . . . . . Scanalyzers . | . . . . . Garrison Access . | . . . . . Total Hacks 24 | . 23 . 1 . Successful 17 | . 16 . 1 . Failed 7 | . 7 . . . Catastrophic . | . . . . . Database Lockouts . | . . . . . Manual 18 | . 17 . 1 . Terminals 23 | . 23 . . . Fabricators . | . . . . . Repair Stations . | . . . . . Recycling Units . | . . . . . Scanalyzers . | . . . . . Garrison Access . | . . . . . Terminal Hacks 11 | . 10 . 1 . Prototype ID Bank 1 | . 1 . . . Branch Access Points 1 | . 1 . . . Emergency Access Points 1 | . 1 . . . Terminal Index 1 | . 1 . . . Locate Traps 1 | . 1 . . . Dispatch Records 1 | . 1 . . . Hauler Manifests 1 | . 1 . . . Zone Layout 3 | . 3 . . . Derelict Proto ID Bank 1 | . . . 1 . Fabricator Hacks . | . . . . . Repair Station Hacks . | . . . . . Recycling Unit Hacks . | . . . . . Scanalyzer . | . . . . . Garrison Access Hacks . | . . . . . Unauthorized Hacks 6 | . 6 . . . Terminals 6 | . 6 . . . Botnet 6 | . 6 . . . Fabricators . | . . . . . Repair Stations . | . . . . . Recycling Units . | . . . . . Scanalyzers . | . . . . . Garrison Access . | . . . . . Data Cores Recovered . | . . . . . Used . | . . . . . Hacking Detections 6 | . 6 . . . Full Trace Events . | . . . . . Feedback Events . | . . . . . Feedback Blocked . | . . . . . Robot Schematics Acquired . | . . . . . Robots Built . | . . . . . Authchips . | . . . . . Time . | . . . . . Total Robot Build Rating . | . . . . . Part Schematics Acquired . | . . . . . Parts Built . | . . . . . Authchips . | . . . . . Time . | . . . . . Total Part Build Rating . | . . . . . Parts Repaired . | . . . . . Time . | . . . . . Parts Recycled . | . . . . . Recycled Matter . | . . . . . Retrieved Matter . | . . . . . Retrieved Components . | . . . . . Parts Scanalyzed . | . . . . . Part Schematics Acquired . | . . . . . Parts Damaged . | . . . . . Bothacking | -11 -10 -10 -10 -9 ------------ Run | Yrd Mat Min Exi Min Used RIF Installer . | . . . . . Robots Hacked . | . . . . . Non-combat . | . . . . . Combat . | . . . . . Robot Hacks Applied . | . . . . . Relay Couplers Released . | . . . . . Fabnet Peak Effective % . | . . . . . Robots Rewired . | . . . . . Allies Hacked . | . . . . . Hacks Repelled . | . . . . . Allies | -11 -10 -10 -10 -9 -------- Run | Yrd Mat Min Exi Min Total Allies . | . . . . . Largest Group . | . . . . . Highest-Rated Group . | . . . . . Highest-Rated Ally . | . . . . . Total Orders . | . . . . . Ally Attacks . | . . . . . Total Damage . | . . . . . Kills . | . . . . . Allies Corrupted . | . . . . . Allies Melted . | . . . . . Intel | -11 -10 -10 -10 -9 ------- Run | Yrd Mat Min Exi Min Robot Analysis Total . | . . . . . Derelict Logs Recovered . | . . . . . Drone Launches . | . . . . . Drone Recoveries . | . . . . . Exploration | -11 -10 -10 -10 -9 ------------- Run | Yrd Mat Min Exi Min Turns Passed 1544 | 145 692 128 432 147 Spaces Moved 885 | 87 455 64 227 52 Core 10 | 8 . . . 2 Treads 38 | 38 . . . . Legs 837 | 41 455 64 227 50 Wheels . | . . . . . Hover . | . . . . . Flight . | . . . . . Fastest Speed 50 | 50 120 190 190 190 Average Speed 148 | 131 120 190 190 194 Slowest Speed 300 | 160 120 190 190 300 Overloaded Moves . | . . . . . Propulsion Burnouts . | . . . . . Robots Hopped . | . . . . . Cave-ins Triggered . | . . . . . Exploration Rate (%) 36 | 6 82 15 62 18 Regions Visited 4 Branch Regions 3 Pre-discovered Areas . | . . . . . Known Exits Taken 1 | . 1 . . . Unknown Exits Taken 3 | 1 . 1 1 . Scrap Searched 1 | . . . . 1 Spaces Dug 1 | . 1 . . . Terrain Destroyed 31 | . 1 12 . 18 Melee 1 | . 1 . . . Projectile . | . . . . . AOE 30 | . . 12 . 18 Terrain Rammed . | . . . . . Walls Destroyed . | . . . . . Machines Disabled . | . . . . . Actions | -11 -10 -10 -10 -9 --------- Run | Yrd Mat Min Exi Min Total 1024 | 104 537 69 230 84 Wait 41 | . 23 . . 18 Move 881 | 86 454 63 226 52 Hop . | . . . . . Pick Up 13 | 4 7 1 1 . Fast Attach 12 | 6 3 . . 3 Attach 4 | 1 2 1 . . Detach 3 | . 2 1 . . Swap 5 | 2 2 1 . . Drop 7 | . 4 . 3 . Fire 49 | 5 33 2 . 9 Melee 9 | . 7 . . 2 Ram . | . . . . . Kick . | . . . . . Crush . | . . . . . Escape Stasis . | . . . . . Rewire . | . . . . . Trap . | . . . . . Miscellaneous . | . . . . . Route ------- -11/Scrapyard -10/Materials (discovered 5 exits: [*Mat x3] / *Min x2) -10/Mines -10/Exiles -9/Mines History --------- Turn | Location | Event 9 | -11/Scrapyard | Discovered new exit (range 14) 146 | -11/Scrapyard | Entered Materials 282 | -10/Materials | Discovered new exit (range 13) 300 | -10/Materials | Build established: Mutant 329 | -10/Materials | Discovered new exit (range 13) 339 | -10/Materials | Identified exit to Mines 499 | -10/Materials | Discovered new exit (range 3) 685 | -10/Materials | Discovered new exit (range 18) 796 | -10/Materials | Lost 3 parts (1p1u1w) 838 | -10/Materials | Entered Mines 909 | -10/Mines | Deemed a non-threat by the Exiles lab entrance 911 | -10/Mines | Discovered new exit (range 5) 966 | -10/Mines | Entered Exiles 1012 | -10/Exiles | Met 8R-AWN 1042 | -10/Exiles | Met EX-HEX 1109 | -10/Exiles | Met EX-BIN 1130 | -10/Exiles | Aligned with FarCom system 1132 | -10/Exiles | Given EX-Vault access code 1193 | -10/Exiles | Opened EX-Vault 1211 | -10/Exiles | Found Flying Fortress v7 1252 | -10/Exiles | Warned to stay clear of 0b10 Research branches 1272 | -10/Exiles | Exiles lab attacked by MAIN.C 1381 | -10/Exiles | Discovered new exit (range 11) 1398 | -10/Exiles | Left Exiles lab with Flying Fortress v7 1398 | -10/Exiles | Entered Mines 1415 | -9/Mines | Core integrity fell below 50% 1450 | -9/Mines | Assembled infested the area 1539 | -9/Mines | Core integrity fell below 20% 1545 | -9/Mines | Destroyed by D-53 Grenadier with Mini Grenade Launcher Last Messages --------------- 01512_ Acquired 7 matter. 01512_ Grenade Launcher destroyed. 01516_ Acquired Mni. Grenade Launcher. 01519_ Aluminum Leg destroyed. 01520_ as-14220 destroyed. 01520_ as-53123 destroyed. 01520_ Pulverizer disabled. 01522_ as-41153 destroyed. 01522_ Pulverizer disabled. 01528_ The unstable cave ceiling collapses. 01530_ Acquired Aluminum Leg. 01532_ The unstable cave ceiling collapses. 01535_ as-30341 destroyed. 01538_ as-61174 destroyed. 01542_ The unstable cave ceiling collapses. 01543_ Lgt. Ion Engine destroyed. 01543_ Aluminum Leg destroyed. 01543_ Imp. Terrain Scanner destroyed. 01544_ Acquired Mak. Leg. 01545_ Mak. Leg destroyed. Map ----- +----------------------------------------------------+ | ??????????????????????????????##################?? | | ??????????????????????????????# #?? | | ??????????????????????????????# "" #?? | | ??????????????????????????????# " #?? | | ??????????????????????????????# " #?? | | ??????????????????????????????# % = #?? | | ??????????????????????????????# " #?? | | ?????????????????????????????## " #?? | | ??????????????????????????????# " ##? | | ??????????????????????????????# #?? | | ???????????????????????####?#?###### ####?? | | ???????????????????????# ????#????######## #????? | | ????????????????????#??# ??????#??## #????? | | ???????????????????????#= ??????##### #######????? | | ???????????????????????#%!#?????# #??#???#???? | | ???????????????????????# #?????# #####?????#????? | | ??????????????########## ###??? #?###????#?????? | | ??????????????# ### # ###?????#???? | | ??????????????# # # #??##??????? | | ??????????????# ###????????? | | ?????????????????"" "" d] #????????? | | ????????????????""" "" # # #??#?????? | | ????????????????""" "" # ?#??????????? | | ?????????????## """ " ## ??? ?? ????? | | ?????????? #? # #??????????? | | ?????????????## @ #??? #?????????? | | ??????????????# #?#?! ##????????? | | ??????????????######## ##???% #????#????? | | ?????????????????????# # #? ?? #?????????? | | ?????????????????????#########????? ###????????? | | ??????????????????????????????????? #??????????? | | ??????????????????????????????????? #??????????? | | ??????????????????????????????????? #??????????? | | ????????????????????????????????????? ???????????? | | ?????????????????????????????????????????????????? | | ?????????????????????????????????????????????????? | | ?????????????????????????????????????????????????? | | ?????????????????????????????????????????????????? | | ?????????????????????????????????????????????????? | | ?????????????????????????????????????????????????? | | ?????????????????????????????????????????????????? | | ?????????????????????????????????????????????????? | | ?????????????????????????????????????????????????? | | ?????????????????????????????????????????????????? | | ?????????????????????????????????????????????????? | | ?????????????????????????????????????????????????? | | ?????????????????????????????????????????????????? | | ?????????????????????????????????????????????????? | | ?????????????????????????????????????????????????? | | ?????????????????????????????????????????????????? | +----------------------------------------------------+ Best States ------------- Heat Dissipation 39 Energy Generation 10 Energy Capacity 125 Matter Stores 300 Matter Capacity 300 Sight Range 16 Terrain Scan Range 16 Terrain Scan Density 10 Evasion (%) 55 Recoil Reduction 2 Item Schematics ----------------- None Robot Schematics ------------------ None Fabricated ------------ Nothing Alien Tech Used ----------------- None Achievements -------------- None Challenges ------------ None Game ------ Seed ThiefBackupModule Manual? 0 Play Time 00:15:49 Cumulative 35.7 hours Start 2024.04.09 @ 06:40:51 End 2024.04.09 @ 06:54:46 Sessions 1 Manual Loads 0 Difficulty Rogue Special Mode None Game No. 53 Rogue 53 Adventurer 0 Explorer 0 Win Type - Total 0 Types 0/0/0/0/0/0/0/0/0 Lore% 16 Gallery% 25 Achievement% 25 Wizard Run 0 Options --------- Layout 2 ASCII 0 Keyboard 1 Movement Numpad Keybinds 0 Fullscreen 2 Font 20/X11 Map View 64x51 Zoom Use 0% Tactical HUD 1 Map Filters NONE Filters NONE Steam 1 RUN: c4d95036-343b-4f4e-bef9-48fdc41174aa